bitfinex/quotes_BTCUSD_20250109
["timestamp","ask_amount","ask_price","bid_price","bid_amount"]
[1736455602471,0.85029879,92029.0,92028.0,0.76081835]
[1736455602680,0.85029879,92029.0,92028.0,0.75181835]
[1736455602860,0.74297445,92029.0,92028.0,0.76081835]
[1736455603073,0.64404645,92029.0,92028.0,0.76981835]
[1736455603281,0.55796476,92029.0,92028.0,0.76081835]
[1736455603570,0.52786995,92029.0,92028.0,0.76081835]
[1736455603785,0.49535995,92029.0,92028.0,0.76981835]
[1736455603990,0.36433795,92029.0,92028.0,0.76081835]
[1736455604193,0.34222895,92029.0,92028.0,0.76081835]
[1736455604397,0.34222895,92029.0,92028.0,0.76981835]
[1736455604809,0.34222895,92029.0,92028.0,0.73622609]
[1736455605018,0.27703295,92029.0,92028.0,0.73622609]
[1736455605223,0.25530095,92029.0,92028.0,0.63622609]
[1736455605424,0.23356895,92029.0,92028.0,0.62722609]
[1736455605630,0.23256895,92029.0,92028.0,0.61822609]
[1736455605832,0.23256895,92029.0,92028.0,1.05467873]
[1736455606038,0.12490995,92029.0,92028.0,1.06367873]
[1736455606459,0.12490995,92029.0,92028.0,1.02911873]
[1736455606668,0.12490995,92029.0,92028.0,0.70166609]
[1736455606870,0.12490995,92029.0,92028.0,0.46322609]
[1736455607072,0.12490995,92029.0,92028.0,0.56322609]
[1736455607511,0.12490995,92029.0,92028.0,0.55422609]
[1736455607711,0.12490995,92029.0,92028.0,0.70422609]
[1736455608052,0.12490995,92029.0,92028.0,0.58522609]
[1736455608262,0.12490995,92029.0,92028.0,0.73522609]
[1736455608464,0.12490995,92029.0,92028.0,0.72722609]
[1736455608680,0.12490995,92029.0,92028.0,0.73522609]
[1736455608894,0.12390995,92029.0,92028.0,0.72622609]
[1736455609105,0.12490995,92029.0,92028.0,0.63522609]
[1736455609313,0.12490995,92029.0,92028.0,0.73522609]
[1736455609520,0.12390995,92029.0,92028.0,1.01579693]
[1736455609688,0.12490995,92029.0,92028.0,1.02479693]
[1736455609901,0.03162183,92029.0,92028.0,1.02479693]
[1736455610127,9.3e-07,92040.0,92039.0,0.590299]
[1736455610338,8.51e-05,92049.0,92048.0,0.373]
[1736455610539,4.51e-05,92049.0,92048.0,0.69457676]
[1736455610945,1e-07,92049.0,92048.0,0.69457676]
[1736455611177,1e-07,92049.0,92048.0,0.69892876]
[1736455612220,1e-07,92049.0,92048.0,0.71948876]
[1736455612424,1e-07,92049.0,92048.0,0.51948876]
[1736455612833,1e-07,92049.0,92048.0,0.53115114]
[1736455613723,1e-07,92049.0,92048.0,0.53015114]
[1736455614139,1e-07,92049.0,92048.0,0.52215114]
[1736455614552,1e-07,92049.0,92048.0,0.52715114]
[1736455614891,1e-07,92049.0,92048.0,0.52215114]
[1736455615298,1e-07,92049.0,92048.0,0.52615114]
[1736455615706,1e-07,92049.0,92048.0,0.53515114]
[1736455616555,2e-07,92059.0,92058.0,0.35]
[1736455616886,2e-07,92064.0,92063.0,0.35]
[1736455617024,0.00049618,92064.0,92063.0,0.51099386]
[1736455617454,0.0931011,92083.0,92071.0,0.1]
[1736455617649,0.09324986,92083.0,92082.0,0.217197]
[1736455617907,0.09324986,92083.0,92082.0,0.34449676]
[1736455618271,0.01404986,92083.0,92082.0,0.49449676]
[1736455618594,0.01404986,92083.0,92082.0,0.52818693]
[1736455619032,0.01404986,92083.0,92082.0,0.53982783]
[1736455619993,0.01404986,92083.0,92082.0,0.53518693]
[1736455620212,0.01404986,92083.0,92082.0,0.95602852]
[1736455620404,0.01404986,92083.0,92082.0,0.92233835]
[1736455620606,0.01404986,92083.0,92082.0,0.96503865]
[1736455620820,0.01404986,92083.0,92082.0,0.80803865]
[1736455621123,0.01404986,92083.0,92082.0,0.36505676]
[1736455621257,0.09264986,92083.0,92082.0,0.34205676]
[1736455621469,0.09264986,92083.0,92082.0,0.33505676]
[1736455622002,0.09264986,92083.0,92082.0,0.10629976]
[1736455622207,0.09264986,92083.0,92082.0,0.11581976]
[1736455622415,0.09264986,92083.0,92082.0,0.35745795]
[1736455622625,0.09264986,92083.0,92082.0,0.24163819]
[1736455622832,0.13984986,92083.0,92082.0,0.12405817]
[1736455623038,0.13984986,92083.0,92082.0,0.44955493]
[1736455623244,0.13984986,92083.0,92082.0,0.44155493]
[1736455623455,0.13984986,92083.0,92082.0,0.34601676]
[1736455623844,0.13984986,92083.0,92082.0,0.33701676]
[1736455624101,0.13984986,92083.0,92082.0,0.5505122]
[1736455624310,0.01395557,92083.0,92082.0,0.58432561]
[1736455624478,0.01395557,92083.0,92082.0,0.58332561]
[1736455624679,0.01382479,92083.0,92082.0,0.59232561]
[1736455624913,0.01382479,92083.0,92082.0,0.39883017]
[1736455625328,0.01382479,92083.0,92082.0,0.40183017]
[1736455625714,0.01382479,92083.0,92082.0,0.39883017]
[1736455625910,0.01382479,92083.0,92082.0,0.38983017]
[1736455626072,0.01382479,92083.0,92082.0,0.39383017]
[1736455626300,0.01382479,92083.0,92082.0,0.69249961]
[1736455626510,0.01382479,92083.0,92082.0,0.68349961]
[1736455627362,0.01382479,92083.0,92082.0,0.66949961]
[1736455627515,0.01382479,92083.0,92082.0,0.66549961]
[1736455627734,0.01382479,92083.0,92082.0,0.35783015]
[1736455628373,0.01382479,92083.0,92082.0,0.36183015]
[1736455628591,0.01382479,92083.0,92082.0,0.38483015]
[1736455628817,0.01382479,92083.0,92082.0,0.53083015]
[1736455629034,0.01382479,92083.0,92082.0,0.53383015]
[1736455629237,0.01382479,92083.0,92082.0,0.82473516]
[1736455629488,0.01382479,92083.0,92082.0,0.83373516]
[1736455629694,0.01382479,92083.0,92082.0,0.54283015]
[1736455629868,0.01382479,92083.0,92082.0,0.53383015]
[1736455630297,0.01382479,92083.0,92082.0,0.54283015]
[1736455630501,0.01382479,92083.0,92082.0,0.53083015]
[1736455630716,0.01382479,92083.0,92082.0,0.38083015]
[1736455630919,0.01382479,92083.0,92082.0,0.38131015]
[1736455631138,0.01382479,92083.0,92082.0,0.38383015]
[1736455631523,0.01382479,92083.0,92082.0,0.38083015]
[1736455631765,0.01382479,92083.0,92082.0,0.36283015]
[1736455632030,0.14332479,92083.0,92082.0,0.005]
[1736455632262,0.14332479,92083.0,92082.0,0.10429976]
[1736455632676,0.14332479,92083.0,92082.0,0.1411569]
[1736455632897,0.14332479,92083.0,92082.0,0.15515688]
[1736455633106,0.14332479,92083.0,92082.0,0.16415688]
[1736455633534,0.14332479,92083.0,92082.0,0.15515688]
[1736455633743,0.14332479,92083.0,92082.0,0.13215688]
[1736455633946,0.14332479,92083.0,92082.0,0.13815688]
[1736455634155,0.14332479,92083.0,92082.0,0.12915688]
[1736455634337,0.14332479,92083.0,92082.0,0.13815688]
[1736455634681,0.14332479,92083.0,92082.0,0.15324285]
[1736455634886,0.14332479,92083.0,92082.0,0.15515688]
[1736455635087,0.14332479,92083.0,92082.0,0.16415688]
[1736455635299,0.14332479,92083.0,92082.0,0.16115688]
[1736455635632,0.14332479,92083.0,92082.0,0.13815688]
[1736455635796,0.14332479,92083.0,92082.0,0.14115688]
[1736455636281,0.14332479,92083.0,92082.0,0.13215688]
[1736455636676,0.14332479,92083.0,92082.0,0.14115688]
[1736455636892,0.14332479,92083.0,92082.0,0.13215688]
[1736455637323,0.01382479,92083.0,92082.0,0.16115688]
[1736455637534,0.01382479,92083.0,92082.0,0.15215688]
[1736455637734,0.01382479,92083.0,92082.0,0.14615686]
[1736455638140,0.01382479,92083.0,92082.0,0.14315686]
[1736455638427,0.01382479,92083.0,92082.0,0.15515686]
[1736455639689,0.01382479,92083.0,92082.0,0.14724263]
[1736455639908,0.01382479,92083.0,92082.0,0.14615686]
[1736455640111,0.01382479,92083.0,92082.0,0.15515686]
[1736455640299,0.01382479,92083.0,92082.0,0.14315686]
[1736455640681,0.01382479,92083.0,92082.0,0.15515686]
[1736455640846,0.01382479,92083.0,92082.0,0.14615686]
[1736455641045,0.01382479,92083.0,92082.0,0.14315686]
[1736455641252,0.01382479,92083.0,92082.0,0.15215686]
[1736455641497,0.01382479,92083.0,92082.0,0.24715686]
[1736455641920,7.9e-07,92083.0,92082.0,0.49315686]
[1736455642331,7.9e-07,92083.0,92082.0,0.49715686]
[1736455642960,8.51e-05,92122.0,92119.0,0.21711]
[1736455643163,8.51e-05,92122.0,92119.0,0.33292976]
[1736455643164,0.00023381,92120.0,92119.0,0.33292976]
[1736455643375,0.00023381,92120.0,92119.0,0.36676833]
[1736455644458,0.00023381,92120.0,92119.0,0.37576833]
[1736455644661,0.00023381,92120.0,92119.0,0.36676833]
[1736455645306,0.00023381,92120.0,92119.0,0.37076833]
[1736455645517,0.00023381,92120.0,92119.0,0.39376833]
[1736455646169,0.00023381,92120.0,92119.0,0.83369535]
[1736455646546,0.00023381,92120.0,92119.0,0.82217535]
[1736455646765,0.00023381,92120.0,92119.0,0.81069535]
[1736455646969,0.00023381,92120.0,92119.0,0.76533678]
[1736455647176,0.00023381,92120.0,92119.0,0.77685678]
[1736455647375,0.00023381,92120.0,92119.0,0.34592976]
[1736455647579,0.00023381,92120.0,92119.0,0.36892976]
[1736455647781,0.00023381,92120.0,92119.0,0.35992974]
[1736455647986,0.00023381,92120.0,92119.0,0.40342574]
[1736455648203,0.07573381,92120.0,92119.0,0.36890574]
[1736455648425,0.07573381,92120.0,92119.0,0.37642574]
[1736455648626,0.07573381,92120.0,92119.0,0.38042574]
[1736455648838,0.00023381,92120.0,92119.0,0.33692974]
[1736455649088,0.00023381,92120.0,92119.0,0.52232057]
[1736455649517,0.00023381,92120.0,92119.0,0.53132057]
[1736455649727,0.00023381,92120.0,92119.0,0.52232057]
[1736455649933,0.00023381,92120.0,92119.0,0.57091828]
[1736455650146,0.00023381,92120.0,92119.0,0.57591828]
[1736455650359,0.00023381,92120.0,92119.0,0.58991828]
[1736455650800,0.00023381,92120.0,92119.0,0.60291828]
[1736455651012,0.00023381,92120.0,92119.0,0.59391828]
[1736455651224,0.1,92171.0,92119.0,0.59391828]
[1736455651225,0.0755,92154.0,92141.0,0.217058]
[1736455651465,0.0457,92157.0,92141.0,0.34435776]
[1736455651681,0.0755,92165.0,92141.0,0.59435776]
[1736455651910,0.0755,92165.0,92141.0,0.52809514]
[1736455652119,0.0755,92165.0,92141.0,0.53957514]
[1736455652535,0.0755,92165.0,92141.0,0.50583776]
[1736455653172,0.0755,92165.0,92141.0,0.49435776]
[1736455653380,0.0755,92165.0,92141.0,0.51483776]
[1736455653786,0.0755,92165.0,92141.0,0.94576478]
[1736455654058,0.0755,92165.0,92141.0,1.04576478]
[1736455654276,0.0755,92165.0,92141.0,1.0814499]
[1736455654503,0.0755,92165.0,92141.0,0.65052288]
[1736455654711,0.0755,92165.0,92141.0,0.61683776]
[1736455654922,0.0755,92165.0,92141.0,0.62827438]
[1736455655127,0.0755,92165.0,92141.0,0.52627438]
[1736455655584,0.0755,92165.0,92141.0,0.53127438]
[1736455655814,0.0755,92165.0,92141.0,0.51979438]
[1736455656024,0.0755,92165.0,92141.0,0.53127438]
[1736455656458,0.0755,92165.0,92141.0,0.9604929]
[1736455656694,0.0755,92165.0,92141.0,1.0514929]
[1736455656898,0.0755,92165.0,92141.0,1.0604929]
[1736455657114,0.0755,92165.0,92141.0,1.0464929]
[1736455657333,0.0755,92165.0,92141.0,0.61727438]
[1736455657549,1e-07,92143.0,92142.0,0.373]
[1736455657760,0.0457,92172.0,92171.0,0.216987]
[1736455658006,0.0461958,92172.0,92171.0,0.33276676]
[1736455658225,0.0004958,92172.0,92171.0,0.33276676]
[1736455658451,0.0004958,92172.0,92171.0,0.35576676]
[1736455658659,0.0139011,92175.0,92171.0,0.35576676]
[1736455658660,9e-07,92175.0,92174.0,0.373]
[1736455658864,9e-07,92175.0,92174.0,0.37729976]
[1736455659065,0.00014951,92175.0,92174.0,0.37729976]
[1736455659315,0.00014951,92175.0,92174.0,0.26577976]
[1736455659529,0.00014951,92175.0,92174.0,0.36577976]
[1736455659756,0.00014951,92175.0,92174.0,0.38877976]
[1736455660409,0.00014951,92175.0,92174.0,0.28877976]
[1736455660621,0.00014951,92175.0,92174.0,0.38877976]
[1736455660829,0.00014951,92175.0,92174.0,0.82599508]
[1736455661048,0.00014951,92175.0,92174.0,0.82299508]
[1736455661272,0.00014951,92175.0,92174.0,0.72299508]
[1736455661488,0.00014951,92175.0,92174.0,0.11329976]
[1736455661696,0.12624951,92175.0,92174.0,0.10429976]
[1736455661906,0.12624951,92175.0,92174.0,0.11129976]
[1736455662548,0.12624951,92175.0,92174.0,0.30449797]
[1736455663219,0.14004812,92175.0,92174.0,0.07409821]
[1736455663439,0.216983,92173.0,92170.0,0.24149777]
[1736455663670,0.216983,92173.0,92170.0,0.23249775]
[1736455664305,0.12624951,92175.0,92155.0,0.42790386]
[1736455664306,0.12624951,92175.0,92156.0,0.01148]
[1736455664565,0.12624951,92175.0,92157.0,0.10429976]
[1736455664566,0.216985,92172.0,92157.0,0.10429976]
[1736455664771,0.04549551,92174.0,92155.0,0.14492415]
[1736455664977,0.216983,92173.0,92156.0,0.32132276]
[1736455665228,0.216983,92173.0,92156.0,0.10429976]
[1736455665439,0.216985,92172.0,92156.0,0.10429976]
[1736455665673,0.216985,92172.0,92157.0,0.21702]
[1736455665916,0.216985,92172.0,92158.0,0.10429976]
[1736455666840,0.23130967,92172.0,92158.0,0.10429976]
[1736455667065,0.12624951,92175.0,92170.0,0.002]
[1736455667308,0.12624951,92175.0,92159.0,0.01148]
[1736455667309,0.12624951,92175.0,92163.0,0.217006]
[1736455667559,0.001,92172.0,92171.0,0.32128676]
[1736455667799,0.04684951,92175.0,92171.0,0.10429976]
[1736455668036,0.04684951,92175.0,92164.0,0.217003]
[1736455668275,0.001,92172.0,92167.0,0.14492415]
[1736455668475,0.04684951,92175.0,92167.0,0.14492415]
[1736455668686,0.216991,92170.0,92167.0,0.14492415]
[1736455668840,0.216991,92170.0,92159.0,0.01148]
[1736455669682,0.216983,92173.0,92159.0,0.01148]
[1736455669884,0.216983,92173.0,92152.0,0.14492415]
[1736455669885,0.217,92166.0,92157.0,0.01148]
[1736455670097,0.21698,92174.0,92158.0,0.10429976]
[1736455670299,0.00114951,92175.0,92172.0,0.216985]
[1736455670501,0.00014951,92175.0,92172.0,0.10429976]
[1736455670742,0.00014951,92175.0,92166.0,0.216998]
[1736455670971,0.001,92173.0,92168.0,0.216995]
[1736455671181,0.00014951,92175.0,92168.0,0.32129476]
[1736455671410,0.00014951,92175.0,92162.0,0.217009]
[1736455671743,0.0452,92173.0,92172.0,0.004]
[1736455671951,0.2281,92173.0,92172.0,0.001]
[1736455672169,0.2281,92173.0,92154.0,0.24159989]
[1736455672170,0.2281,92173.0,92157.0,0.14492415]
[1736455672374,0.216999,92167.0,92157.0,0.14492415]
[1736455672785,0.216999,92167.0,92153.0,0.01148]
[1736455673204,0.24803843,92167.0,92153.0,0.01148]
[1736455673414,0.217007,92163.0,92146.0,0.13592413]
[1736455673598,0.217021,92157.0,92150.0,0.01148]
[1736455673895,0.207151,92157.0,92150.0,0.01148]
[1736455674140,0.215456,92153.0,92145.0,0.01148]
[1736455674581,0.21704,92149.0,92141.0,0.19330002]
[1736455674815,0.12747,92152.0,92141.0,0.19330002]
[1736455675038,0.12747,92152.0,92150.0,0.001]
[1736455675241,0.217035,92151.0,92150.0,0.001]
[1736455675446,0.2162475,92151.0,92150.0,0.001]
[1736455676081,0.315775,92151.0,92150.0,0.001]
[1736455676500,0.217063,92140.0,92134.0,0.19330002]
[1736455676927,0.217054,92143.0,92128.0,0.217089]
[1736455677359,0.217048,92146.0,92127.0,0.01148]
[1736455677512,0.217048,92146.0,92129.0,0.217086]
[1736455677722,0.001,92140.0,92129.0,0.20808598]
[1736455678106,0.217057,92142.0,92129.0,0.20808598]
[1736455678316,0.217057,92142.0,92128.0,0.01148]
[1736455678551,0.217057,92142.0,92125.0,0.19330002]
[1736455678552,0.21706,92140.0,92126.0,0.19330002]
[1736455678755,0.001,92143.0,92126.0,0.19330002]
[1736455679160,0.001,92143.0,92125.0,0.41039502]
[1736455679374,0.001,92143.0,92126.0,0.10429976]
[1736455679608,0.001,92143.0,92127.0,0.21709]
[1736455679814,0.21705,92145.0,92127.0,0.21709]
[1736455680068,0.00014856,92146.0,92132.0,0.217077]
[1736455680279,0.217042,92148.0,92132.0,0.217077]
[1736455680280,0.21659028,92148.0,92132.0,0.217077]
[1736455680486,0.21659028,92148.0,92132.0,0.2175728]
[1736455680683,0.217052,92144.0,92132.0,0.2175728]
[1736455680840,0.21659028,92148.0,92132.0,0.2175728]
[1736455681686,0.0561382,92152.0,92133.0,0.10429976]
[1736455681891,0.0561382,92152.0,92132.0,0.0004958]
[1736455682100,0.001,92142.0,92132.0,0.2175738]
[1736455682299,0.001,92142.0,92134.0,0.14545083]
[1736455682503,0.218057,92142.0,92134.0,0.14545083]
[1736455682713,0.218057,92142.0,92134.0,0.13645081]
[1736455682910,0.218057,92142.0,92132.0,0.13694661]
[1736455683117,0.24363231,92142.0,92132.0,0.13694661]
[1736455683325,0.217057,92142.0,92132.0,0.13694661]
[1736455683664,0.0828,92147.0,92132.0,0.0004958]
[1736455683821,0.217073,92135.0,92132.0,0.0004958]
[1736455684233,0.434146,92135.0,92132.0,0.0014958]
[1736455684634,0.0495,92134.0,92132.0,0.0004958]
[1736455686380,0.001,92147.0,92145.0,0.217049]
[1736455686511,0.001,92147.0,92146.0,0.10429976]
[1736455686717,0.001,92147.0,92146.0,0.10538497]
[1736455686894,0.04459598,92175.0,92147.0,0.217044]
[1736455687092,0.04459598,92175.0,92144.0,0.01144]
[1736455687093,0.21698,92174.0,92162.0,0.217008]
[1736455687757,0.217,92166.0,92161.0,0.1843]
[1736455688079,9e-07,92175.0,92161.0,0.1843]
[1736455688284,0.216983,92173.0,92159.0,0.01144]
[1736455688484,0.001,92174.0,92159.0,0.01144]
[1736455688702,0.217,92166.0,92156.0,0.24159989]
[1736455688915,0.1,92171.0,92156.0,0.24159989]
[1736455689118,0.217009,92162.0,92150.0,0.01144]
[1736455689513,0.217016,92159.0,92150.0,0.01144]
[1736455689746,0.217016,92159.0,92151.0,0.24159989]
[1736455689981,0.217008,92163.0,92151.0,0.45863389]
[1736455690405,0.218001,92166.0,92151.0,0.45863389]
[1736455690618,0.217001,92166.0,92151.0,0.45863389]
[1736455690797,0.217008,92163.0,92151.0,0.45863389]
[1736455690971,0.217008,92163.0,92151.0,0.006]
[1736455691178,0.217008,92163.0,92151.0,0.218034]
[1736455691385,0.01153334,92166.0,92151.0,0.217034]
[1736455691588,0.0762,92164.0,92151.0,0.001]
[1736455691789,0.0482,92154.0,92147.0,0.24159989]
[1736455692358,0.0762,92164.0,92151.0,0.14580838]
[1736455692561,0.0762,92164.0,92152.0,0.217032]
[1736455692769,0.217006,92163.0,92151.0,0.14580838]
[1736455692975,0.217009,92162.0,92151.0,0.14580838]
[1736455693403,0.0762,92164.0,92151.0,0.14580838]
[1736455693628,0.0762,92164.0,92153.0,0.14580838]
[1736455693629,0.217028,92154.0,92153.0,0.14580838]
[1736455694271,0.217028,92154.0,92147.0,0.24580838]
[1736455694469,0.217028,92154.0,92151.0,0.001]
[1736455694688,0.21704,92149.0,92147.0,0.1]
[1736455696815,0.001,92149.0,92147.0,0.1]
[1736455697062,0.01233289,92149.0,92147.0,0.1]
[1736455697316,0.002,92149.0,92147.0,0.1]
[1736455697579,0.001,92149.0,92148.0,0.217042]
[1736455697839,0.001,92149.0,92148.0,0.20804198]
[1736455699080,0.01140502,92152.0,92148.0,0.20804198]
[1736455699331,0.217015,92160.0,92148.0,0.20804198]
[1736455700109,0.217004,92164.0,92149.0,0.217039]
[1736455700387,0.216997,92167.0,92149.0,0.217039]
[1736455700632,0.22813901,92167.0,92149.0,0.217039]
[1736455700897,0.002,92160.0,92149.0,0.217039]
[1736455701220,0.001,92160.0,92157.0,0.21702]
[1736455701437,0.001,92160.0,92159.0,0.300216]
[1736455701930,0.001,92160.0,92159.0,0.43833658]
[1736455702211,0.00014943,92175.0,92174.0,0.21698]
[1736455702511,0.00014943,92175.0,92174.0,0.33271976]
[1736455702736,0.00014943,92175.0,92174.0,0.36652051]
[1736455702982,0.00014943,92175.0,92174.0,0.35752049]
[1736455703261,5.3e-07,92176.0,92175.0,0.3534]
[1736455703512,5.3e-07,92179.0,92177.0,0.173]
[1736455703795,8.51e-05,92213.0,92181.0,0.216964]
[1736455704061,8.51e-05,92213.0,92211.0,0.216893]
[1736455704295,0.00017633,92212.0,92211.0,0.33263276]
[1736455705818,0.00017633,92212.0,92211.0,0.52677736]
[1736455706476,0.00017633,92212.0,92211.0,0.33263276]
[1736455706685,8.211e-05,92212.0,92211.0,0.33463276]
[1736455706909,8.211e-05,92212.0,92211.0,0.235333]
[1736455707118,8.211e-05,92212.0,92211.0,0.37379792]
[1736455707316,8.211e-05,92212.0,92211.0,0.37579792]
[1736455707526,8.211e-05,92212.0,92211.0,0.38079792]
[1736455707729,8.211e-05,92212.0,92211.0,0.22623298]
[1736455708756,8.211e-05,92212.0,92211.0,0.01844]
[1736455708932,8.211e-05,92212.0,92211.0,0.007]
[1736455709348,0.01117492,92212.0,92211.0,0.007]
[1736455709593,8.211e-05,92212.0,92211.0,0.005]
[1736455709796,8.211e-05,92212.0,92210.0,0.01144]
[1736455710324,8.211e-05,92212.0,92211.0,0.002]
[1736455710524,8.211e-05,92212.0,92210.0,0.01144]
[1736455710732,8.211e-05,92212.0,92211.0,0.002]
[1736455711161,8.211e-05,92212.0,92210.0,0.01144]
[1736455711375,0.23973868,92211.0,92210.0,0.002]
[1736455711583,0.216893,92211.0,92208.0,0.0114]
[1736455712212,0.216909,92205.0,92198.0,0.14556492]
[1736455712423,0.216915,92202.0,92197.0,0.0114]
[1736455712634,0.22826569,92202.0,92197.0,0.0114]
[1736455712835,0.43383,92202.0,92197.0,0.00239998]
[1736455713040,0.216915,92202.0,92197.0,0.00239998]
[1736455713267,0.43383,92202.0,92197.0,0.00239998]
[1736455713473,0.216915,92202.0,92197.0,0.00239998]
[1736455713682,0.21697311,92212.0,92197.0,0.00239998]
[1736455713683,8.211e-05,92212.0,92198.0,0.10429976]
[1736455713901,8.211e-05,92212.0,92203.0,0.216911]
[1736455714104,8.211e-05,92212.0,92200.0,0.216919]
[1736455714305,8.211e-05,92212.0,92183.0,0.216957]
[1736455714306,0.002,92202.0,92201.0,0.0114]
[1736455714515,8.211e-05,92212.0,92201.0,0.0114]
[1736455714722,0.216893,92211.0,92201.0,0.0114]
[1736455714944,8.211e-05,92212.0,92201.0,0.0114]
[1736455715405,0.00208211,92212.0,92207.0,0.216902]
[1736455715815,0.00208211,92212.0,92201.0,0.0114]
[1736455716042,0.00208211,92212.0,92202.0,0.0114]
[1736455716259,0.216896,92210.0,92202.0,0.0114]
[1736455716505,0.00208211,92212.0,92202.0,0.0114]
[1736455716701,8.211e-05,92212.0,92203.0,0.10429976]
[1736455716909,8.211e-05,92212.0,92209.0,0.216897]
[1736455717344,8.211e-05,92212.0,92209.0,0.433794]
[1736455717740,8.211e-05,92212.0,92210.0,0.0114]
[1736455718968,8.211e-05,92212.0,92201.0,0.1]
[1736455719181,8.211e-05,92212.0,92206.0,0.0114]
[1736455719312,0.216898,92209.0,92201.0,0.1]
[1736455719513,0.216898,92209.0,92202.0,0.0114]
[1736455719715,0.216898,92209.0,92203.0,0.002]
[1736455720368,0.21691,92204.0,92201.0,0.1]
[1736455720573,0.26621,92204.0,92201.0,0.1]
[1736455720746,0.483121,92204.0,92201.0,0.1]
[1736455721158,0.583121,92204.0,92201.0,0.1]
[1736455721823,0.1,92202.0,92201.0,0.1]
[1736455722873,0.268211,92204.0,92201.0,0.1]
[1736455723092,0.002,92204.0,92201.0,0.1]
[1736455723301,0.002,92204.0,92202.0,0.216915]
[1736455723517,0.002,92204.0,92203.0,0.1]
[1736455723720,8.51e-05,92213.0,92203.0,0.1]
[1736455723721,8.51e-05,92213.0,92211.0,0.216893]
[1736455723931,8.51e-05,92213.0,92211.0,0.32119276]
[1736455724134,8.51e-05,92213.0,92211.0,0.228293]
[1736455724974,8.51e-05,92213.0,92211.0,0.229293]
[1736455725175,8.51e-05,92213.0,92211.0,0.236293]
[1736455726765,8.51e-05,92213.0,92211.0,0.235293]
[1736455727172,8.51e-05,92213.0,92211.0,0.237293]
[1736455727733,8.51e-05,92213.0,92211.0,0.22829298]
[1736455729365,8.51e-05,92213.0,92211.0,0.32829298]
[1736455730552,8.51e-05,92213.0,92211.0,0.109]
[1736455732746,8.51e-05,92213.0,92211.0,0.09999998]
[1736455733253,0.01131353,92212.0,92211.0,0.09999998]
[1736455733489,8.211e-05,92212.0,92211.0,0.09999998]
[1736455733732,0.02178683,92212.0,92211.0,0.09999998]
[1736455733964,0.23867783,92212.0,92211.0,0.09999998]
[1736455734142,0.21697311,92212.0,92211.0,0.09999998]
[1736455734386,8.211e-05,92212.0,92211.0,0.09999998]
[1736455735194,0.00208211,92212.0,92211.0,0.09999998]
[1736455735561,8.211e-05,92212.0,92211.0,0.09999998]
[1736455736195,0.00208211,92212.0,92211.0,0.09999998]
[1736455736565,8.211e-05,92212.0,92211.0,0.09999998]
[1736455736971,0.00508211,92212.0,92211.0,0.09999998]
[1736455737171,8.211e-05,92212.0,92211.0,0.09999998]
[1736455737596,8.211e-05,92212.0,92211.0,0.10199998]
[1736455737925,8.211e-05,92212.0,92211.0,0.28614456]
[1736455738342,8.211e-05,92212.0,92211.0,0.09399996]
[1736455739129,8.211e-05,92212.0,92211.0,0.09299996]
[1736455739308,0.0230851,92249.0,92211.0,0.09299996]
[1736455739508,0.10429976,92241.0,92212.0,0.0114]
[1736455739741,0.216876,92219.0,92212.0,0.0114]
[1736455740953,0.433768,92215.0,92212.0,0.001]
[1736455741154,0.433768,92215.0,92211.0,0.09099996]
[1736455741155,0.216889,92213.0,92211.0,0.09099996]
[1736455741363,0.17979484,92212.0,92211.0,0.09099996]
[1736455741996,0.17979484,92212.0,92211.0,0.08983829]
[1736455742208,0.10429976,92212.0,92211.0,0.08983829]
[1736455742595,0.22836149,92215.0,92211.0,0.08983829]
[1736455742837,0.22836149,92215.0,92211.0,0.08083827]
[1736455742838,0.44524649,92215.0,92211.0,0.08083827]
[1736455743455,0.45024649,92215.0,92211.0,0.08083827]
[1736455743871,0.45224649,92215.0,92211.0,0.08083827]
[1736455744116,0.05827465,92214.0,92211.0,0.08083827]
[1736455744358,0.216889,92213.0,92211.0,0.08083827]
[1736455745061,0.216889,92213.0,92211.0,0.08183827]
[1736455745273,0.216889,92213.0,92211.0,0.08083827]
[1736455746457,0.10429976,92212.0,92211.0,0.08083827]
[1736455746717,1.26034125,92212.0,92211.0,0.08083827]
[1736455746921,1.26034125,92212.0,92211.0,0.05042827]
[1736455747126,1.41034125,92212.0,92211.0,0.05042827]
[1736455747331,1.41034125,92212.0,92211.0,0.03041]
[1736455747542,0.299215,92202.0,92201.0,0.09664304]
[1736455747756,0.45512736,92202.0,92201.0,0.09673437]
[1736455747969,1.69796382,92202.0,92201.0,0.08773435]
[1736455748176,1.74766382,92202.0,92201.0,0.08773435]
[1736455748383,1.74766382,92202.0,92201.0,0.0320929]
[1736455748615,1.74766382,92202.0,92201.0,0.01944813]
[1736455748833,1.34766382,92202.0,92201.0,0.01944813]
[1736455749903,1.57357882,92202.0,92201.0,0.01944813]
[1736455750125,1.56857882,92202.0,92201.0,0.01944813]
[1736455750410,1.57757882,92202.0,92201.0,0.01944813]
[1736455750614,1.53727146,92202.0,92201.0,0.01944813]
[1736455750822,0.444435,92202.0,92201.0,0.01944813]
[1736455751037,0.244735,92202.0,92201.0,0.01944813]
[1736455751270,0.24122024,92202.0,92201.0,0.01944813]
[1736455752574,0.22822024,92202.0,92201.0,0.01944813]
[1736455752788,0.23322024,92202.0,92201.0,0.01044811]
[1736455753017,0.24222024,92202.0,92201.0,0.01044811]
[1736455753230,0.22822024,92202.0,92201.0,0.01044811]
[1736455753496,0.01130524,92202.0,92201.0,0.01044811]
[1736455753758,0.008,92202.0,92201.0,0.01044811]
[1736455754011,0.002,92202.0,92201.0,0.39724787]
[1736455754303,0.216836,92236.0,92208.0,0.1]
[1736455754510,0.01128276,92223.0,92212.0,0.099]
[1736455754758,0.0216836,92235.0,92218.0,0.216876]
[1736455755238,0.0216836,92235.0,92212.0,0.099]
[1736455755239,0.216869,92222.0,92212.0,0.14546736]
[1736455755505,0.216889,92214.0,92212.0,0.14546736]
[1736455755754,0.10429976,92221.0,92212.0,0.14546736]
[1736455756006,0.10429976,92232.0,92206.0,0.37373136]
[1736455756243,0.10429976,92232.0,92214.0,0.433771]
[1736455756491,8.51e-05,92249.0,92215.0,0.10429976]
[1736455756743,8.51e-05,92249.0,92223.0,0.216864]
[1736455756744,0.216831,92238.0,92223.0,0.216864]
[1736455757239,0.006,92232.0,92223.0,0.216864]
[1736455757466,0.216831,92238.0,92223.0,0.216864]
[1736455757695,0.2601962,92238.0,92223.0,0.216864]
[1736455757925,0.10429976,92237.0,92211.0,0.216893]
[1736455758139,0.216862,92225.0,92212.0,0.01136]
[1736455759108,0.216862,92225.0,92208.0,0.3159]